[Event "Early-Titled-Tuesday-Blitz-September-05-2023"]
[Site "Chess.com"]
[Date "2023.09.05"]
[Round "11"]
[White "GaiozNigalidze"]
[Black "SashaKuzhilniy"]
[Result "1/2-1/2"]
[WhiteElo "2758"]
[BlackElo "2647"]
[TimeControl "180+1"]
[EndTime "10:06:59 PDT"]
[Termination "Game drawn by repetition"]

1. c4 {[%clk 0:03:00.9]} 1... g6 {[%clk 0:02:55.5]} 2. Nf3 {[%clk 0:03:00]} 2...
Bg7 {[%clk 0:02:54.9]} 3. g3 {[%clk 0:03:00]} 3... e5 {[%clk 0:02:52.5]} 4. Nc3
{[%clk 0:02:59.4]} 4... Nc6 {[%clk 0:02:51.6]} 5. Bg2 {[%clk 0:02:58.6]} 5... d6
{[%clk 0:02:50.1]} 6. O-O {[%clk 0:02:57.4]} 6... f5 {[%clk 0:02:50.7]} 7. d3
{[%clk 0:02:57.5]} 7... Nge7 {[%clk 0:02:47.7]} 8. Rb1 {[%clk 0:02:57.6]} 8...
O-O {[%clk 0:02:44.5]} 9. Bg5 {[%clk 0:02:51.5]} 9... h6 {[%clk 0:02:36.1]} 10.
Bxe7 {[%clk 0:02:51.6]} 10... Nxe7 {[%clk 0:02:35.8]} 11. Nd2 {[%clk 0:02:45.8]}
11... g5 {[%clk 0:02:34.2]} 12. b4 {[%clk 0:02:43.7]} 12... g4 {[%clk
0:02:30.2]} 13. Nd5 {[%clk 0:02:39.8]} 13... Ng6 {[%clk 0:02:28.5]} 14. e3
{[%clk 0:02:29.5]} 14... c6 {[%clk 0:02:15]} 15. Nc3 {[%clk 0:02:28.2]} 15... h5
{[%clk 0:02:15.5]} 16. b5 {[%clk 0:02:23]} 16... c5 {[%clk 0:02:14.4]} 17. Bd5+
{[%clk 0:01:50.6]} 17... Kh7 {[%clk 0:02:13.2]} 18. f4 {[%clk 0:01:51.5]} 18...
exf4 {[%clk 0:02:10.4]} 19. Ne2 {[%clk 0:01:43.6]} 19... f3 {[%clk 0:01:59.5]}
20. Nf4 {[%clk 0:01:34.9]} 20... h4 {[%clk 0:01:58.1]} 21. Nxf3 {[%clk
0:01:16.4]} 21... Nxf4 {[%clk 0:01:51.5]} 22. exf4 {[%clk 0:01:14.9]} 22... gxf3
{[%clk 0:01:46.1]} 23. Qxf3 {[%clk 0:01:15.8]} 23... Qf6 {[%clk 0:01:25.4]} 24.
Rbe1 {[%clk 0:01:14.7]} 24... Bd7 {[%clk 0:01:23.1]} 25. Bxb7 {[%clk 0:00:42.7]}
25... Rae8 {[%clk 0:01:22.5]} 26. Bd5 {[%clk 0:00:39.8]} 26... Qg6 {[%clk
0:01:09.9]} 27. a4 {[%clk 0:00:35.2]} 27... Bd4+ {[%clk 0:00:59.6]} 28. Kg2
{[%clk 0:00:32.9]} 28... Qg4 {[%clk 0:00:53.1]} 29. Qxg4 {[%clk 0:00:27.2]}
29... fxg4 {[%clk 0:00:54]} 30. gxh4 {[%clk 0:00:20.3]} 30... Kg6 {[%clk
0:00:43.4]} 31. a5 {[%clk 0:00:18.3]} 31... Bc3 {[%clk 0:00:36.9]} 32. Rxe8
{[%clk 0:00:17.4]} 32... Rxe8 {[%clk 0:00:37]} 33. b6 {[%clk 0:00:17.7]} 33...
axb6 {[%clk 0:00:13.9]} 34. a6 {[%clk 0:00:17.8]} 34... Be6 {[%clk 0:00:13.7]}
35. f5+ {[%clk 0:00:12.1]} 35... Bxf5 {[%clk 0:00:14.1]} 36. a7 {[%clk
0:00:12.6]} 36... Bxd3 {[%clk 0:00:13.8]} 37. Rf2 {[%clk 0:00:09.7]} 37... Bd4
{[%clk 0:00:11.6]} 38. Rf4 {[%clk 0:00:09.5]} 38... Re2+ {[%clk 0:00:09.8]} 39.
Kg3 {[%clk 0:00:09.1]} 39... Re3+ {[%clk 0:00:07.6]} 40. Kg2 {[%clk 0:00:05.6]}
40... Re2+ {[%clk 0:00:06.1]} 41. Kg3 {[%clk 0:00:06.2]} 41... Re3+ {[%clk
0:00:04.9]} 42. Kxg4 {[%clk 0:00:06.8]} 42... Be2+ {[%clk 0:00:04.1]} 43. Rf3
{[%clk 0:00:04.9]} 43... Bxf3+ {[%clk 0:00:03.8]} 44. Bxf3 {[%clk 0:00:05.5]}
44... Ra3 {[%clk 0:00:03.1]} 45. a8=Q {[%clk 0:00:06]} 45... Rxa8 {[%clk
0:00:03.6]} 46. Bxa8 {[%clk 0:00:06.6]} 46... Kh6 {[%clk 0:00:02.7]} 47. Bd5
{[%clk 0:00:06.7]} 47... Be5 {[%clk 0:00:03.4]} 48. h3 {[%clk 0:00:06.7]} 48...
Bd4 {[%clk 0:00:03.1]} 49. h5 {[%clk 0:00:07.2]} 49... Be5 {[%clk 0:00:04]} 50.
Bf3 {[%clk 0:00:07]} 50... Bd4 {[%clk 0:00:04.1]} 51. Kf5 {[%clk 0:00:07.6]}
51... Be5 {[%clk 0:00:05]} 52. Ke6 {[%clk 0:00:08]} 52... Kg5 {[%clk 0:00:05.6]}
53. Kd5 {[%clk 0:00:08.3]} 53... Kh6 {[%clk 0:00:05.9]} 54. Kc6 {[%clk
0:00:08.8]} 54... Bh2 {[%clk 0:00:06.5]} 55. Kxb6 {[%clk 0:00:09.1]} 55... Be5
{[%clk 0:00:07.1]} 56. Kc6 {[%clk 0:00:09.7]} 56... Bh2 {[%clk 0:00:08]} 57. Kd5
{[%clk 0:00:10.2]} 57... Be5 {[%clk 0:00:08.9]} 58. Ke6 {[%clk 0:00:10.8]} 58...
Bh2 {[%clk 0:00:09.8]} 59. Kf5 {[%clk 0:00:11.4]} 59... Be5 {[%clk 0:00:10.2]}
60. Be2 {[%clk 0:00:12.1]} 60... Bh2 {[%clk 0:00:11.1]} 61. Kg4 {[%clk
0:00:12.7]} 61... Be5 {[%clk 0:00:12]} 62. Kf3 {[%clk 0:00:13.3]} 62... Bd4
{[%clk 0:00:10]} 63. Ke4 {[%clk 0:00:13.2]} 63... Be5 {[%clk 0:00:10.9]} 64. Kf5
{[%clk 0:00:12.5]} 64... Bh2 {[%clk 0:00:11.5]} 65. h4 {[%clk 0:00:12.8]} 65...
Be5 {[%clk 0:00:12.4]} 66. Ke6 {[%clk 0:00:13]} 66... Bh2 {[%clk 0:00:12.9]} 67.
Bf3 {[%clk 0:00:13.3]} 67... Be5 {[%clk 0:00:13.4]} 68. Kf5 {[%clk 0:00:13.9]}
68... Bh2 {[%clk 0:00:14.3]} 69. Kg4 {[%clk 0:00:14.5]} 69... Be5 {[%clk
0:00:15.2]} 70. Kh3 {[%clk 0:00:15.1]} 70... Kg7 {[%clk 0:00:15.3]} 71. Be2
{[%clk 0:00:14.5]} 71... Kh6 {[%clk 0:00:16.2]} 72. Kg2 {[%clk 0:00:14.5]} 72...
Bd4 {[%clk 0:00:16.9]} 73. Kf3 {[%clk 0:00:14.9]} 73... Be5 {[%clk 0:00:17.8]}
74. Kg4 {[%clk 0:00:15.5]} 74... Bh2 {[%clk 0:00:18.1]} 75. Kh3 {[%clk
0:00:14.9]} 75... Be5 {[%clk 0:00:19]} 76. Kg2 {[%clk 0:00:15.8]} 76... Bd4
{[%clk 0:00:19.4]} 77. Bd1 {[%clk 0:00:16]} 77... Be5 {[%clk 0:00:20.3]} 78. Kf3
{[%clk 0:00:16.5]} 78... Bd4 {[%clk 0:00:21.2]} 79. Ke4 {[%clk 0:00:16.9]} 79...
Be5 {[%clk 0:00:22.1]} 80. Kf5 {[%clk 0:00:17.4]} 80... Bh2 {[%clk 0:00:22.6]}
81. Ke6 {[%clk 0:00:16.5]} 81... Be5 {[%clk 0:00:23.2]} 82. Kd5 {[%clk
0:00:17.1]} 82... Bh2 {[%clk 0:00:23.7]} 83. Ke6 {[%clk 0:00:17.6]} 83... Bg3
{[%clk 0:00:23.9]} 84. Kd5 {[%clk 0:00:18.2]} 84... Be5 {[%clk 0:00:24.3]} 85.
Ke6 {[%clk 0:00:18.8]} 85... Bg3 {[%clk 0:00:24.9]} 86. Kd5 {[%clk 0:00:19.3]}
86... Bh2 {[%clk 0:00:25.8]} 87. Ke6 {[%clk 0:00:19.9]} 1/2-1/2

[Event "Early-Titled-Tuesday-Blitz-September-05-2023"]
[Site "Chess.com"]
[Date "2023.09.05"]
[Round "11"]
[White "TatjanaVasilevich"]
[Black "ChessQueen"]
[Result "1/2-1/2"]
[WhiteElo "2623"]
[BlackElo "2748"]
[TimeControl "180+1"]
[EndTime "10:07:01 PDT"]
[Termination "Game drawn by repetition"]

1. d4 {[%clk 0:02:59]} 1... f5 {[%clk 0:02:59.6]} 2. e4 {[%clk 0:02:57.4]} 2...
fxe4 {[%clk 0:02:58.9]} 3. Nc3 {[%clk 0:02:57.5]} 3... Nf6 {[%clk 0:02:58]} 4.
Bg5 {[%clk 0:02:57.5]} 4... g6 {[%clk 0:02:57.5]} 5. h4 {[%clk 0:02:57.7]} 5...
d5 {[%clk 0:02:54.8]} 6. h5 {[%clk 0:02:57.5]} 6... Bg4 {[%clk 0:02:50.4]} 7.
Be2 {[%clk 0:02:56.7]} 7... Bxe2 {[%clk 0:02:34.7]} 8. Ngxe2 {[%clk 0:02:52.5]}
8... Rg8 {[%clk 0:02:18.8]} 9. Nf4 {[%clk 0:02:51.6]} 9... Nc6 {[%clk
0:02:06.7]} 10. Nb5 {[%clk 0:02:37.8]} 10... Qd7 {[%clk 0:01:32.1]} 11. Bxf6
{[%clk 0:02:37]} 11... exf6 {[%clk 0:01:32.9]} 12. Nxd5 {[%clk 0:02:37.4]} 12...
Kf7 {[%clk 0:01:26.2]} 13. hxg6+ {[%clk 0:02:33.9]} 13... hxg6 {[%clk 0:01:26]}
14. Ndxc7 {[%clk 0:02:27.4]} 14... Rc8 {[%clk 0:01:21.1]} 15. Rh7+ {[%clk
0:02:26]} 15... Rg7 {[%clk 0:01:19.4]} 16. Rxg7+ {[%clk 0:02:25.7]} 16... Bxg7
{[%clk 0:01:20.3]} 17. d5 {[%clk 0:02:25.8]} 17... Nb4 {[%clk 0:00:33.8]} 18.
Qd2 {[%clk 0:01:58.4]} 18... Nxc2+ {[%clk 0:00:32]} 19. Qxc2 {[%clk 0:01:58.2]}
19... Qxb5 {[%clk 0:00:31.6]} 20. Nxb5 {[%clk 0:01:31.6]} 20... Rxc2 {[%clk
0:00:32.5]} 21. d6 {[%clk 0:01:31.9]} 21... Ke8 {[%clk 0:00:20.8]} 22. Rd1
{[%clk 0:01:25.7]} 22... Kd7 {[%clk 0:00:20.7]} 23. Rd2 {[%clk 0:01:23.5]} 23...
Rc5 {[%clk 0:00:18]} 24. Nc3 {[%clk 0:01:23.1]} 24... f5 {[%clk 0:00:18.1]} 25.
Ne2 {[%clk 0:01:21.1]} 25... Rc6 {[%clk 0:00:16.4]} 26. f3 {[%clk 0:01:19.1]}
26... Rxd6 {[%clk 0:00:16.2]} 27. Rxd6+ {[%clk 0:01:19]} 27... Kxd6 {[%clk
0:00:17.1]} 28. fxe4 {[%clk 0:01:19.6]} 28... fxe4 {[%clk 0:00:18]} 29. b3
{[%clk 0:01:19.8]} 29... Kd5 {[%clk 0:00:17.5]} 30. Kf2 {[%clk 0:01:19.6]} 30...
Ke5 {[%clk 0:00:17.5]} 31. g3 {[%clk 0:01:18.5]} 31... Bf8 {[%clk 0:00:17.6]}
32. Nf4 {[%clk 0:01:18.2]} 32... Bc5+ {[%clk 0:00:17.8]} 33. Ke2 {[%clk
0:01:18.7]} 33... g5 {[%clk 0:00:18.7]} 34. Ng2 {[%clk 0:01:19.1]} 34... Kd4
{[%clk 0:00:18]} 35. Kd2 {[%clk 0:01:14.4]} 35... Bb4+ {[%clk 0:00:18.1]} 36.
Ke2 {[%clk 0:01:14.4]} 36... Bc5 {[%clk 0:00:17.9]} 37. Kd2 {[%clk 0:01:14.2]}
37... Bd6 {[%clk 0:00:18.6]} 38. Ne3 {[%clk 0:01:13.6]} 38... Bc7 {[%clk
0:00:17.2]} 39. Ke2 {[%clk 0:01:12]} 39... a5 {[%clk 0:00:16.5]} 40. a3 {[%clk
0:01:08.2]} 40... Be5 {[%clk 0:00:15.1]} 41. Kd2 {[%clk 0:01:03.7]} 41... Bb8
{[%clk 0:00:14.7]} 42. a4 {[%clk 0:01:02.2]} 42... Bc7 {[%clk 0:00:13.8]} 43.
Nf5+ {[%clk 0:01:02.1]} 43... Ke5 {[%clk 0:00:12.8]} 44. Ne3 {[%clk 0:01:01.8]}
44... Kd4 {[%clk 0:00:12.8]} 45. Nf5+ {[%clk 0:01:01.9]} 45... Kc5 {[%clk
0:00:13.3]} 46. Kc3 {[%clk 0:00:55.9]} 46... Be5+ {[%clk 0:00:12.9]} 47. Kd2
{[%clk 0:00:55.6]} 47... Kb4 {[%clk 0:00:12.7]} 48. Kc2 {[%clk 0:00:56]} 48...
b6 {[%clk 0:00:11.5]} 49. g4 {[%clk 0:00:54.9]} 49... Bf4 {[%clk 0:00:11.6]} 50.
Nd4 {[%clk 0:00:53.9]} 50... e3 {[%clk 0:00:10.9]} 51. Kd3 {[%clk 0:00:51.1]}
51... Ka3 {[%clk 0:00:11.5]} 52. Kc2 {[%clk 0:00:48.3]} 52... Be5 {[%clk
0:00:09.5]} 53. Ne2 {[%clk 0:00:46.5]} 53... Kb4 {[%clk 0:00:09.6]} 54. Nc1
{[%clk 0:00:46.1]} 54... Bd6 {[%clk 0:00:09.2]} 55. Nd3+ {[%clk 0:00:45.3]}
55... Ka3 {[%clk 0:00:09.8]} 56. Nc1 {[%clk 0:00:45.9]} 56... Bb4 {[%clk
0:00:09.1]} 57. Ne2 {[%clk 0:00:44.8]} 57... Bc5 {[%clk 0:00:08.9]} 58. Kc3
{[%clk 0:00:44.3]} 58... Bb4+ {[%clk 0:00:08.3]} 59. Kc2 {[%clk 0:00:44.6]}
59... Bc5 {[%clk 0:00:09]} 60. Kc3 {[%clk 0:00:44.8]} 60... Be7 {[%clk
0:00:08.8]} 61. Kc2 {[%clk 0:00:42.8]} 61... Bf6 {[%clk 0:00:09.2]} 62. Nc1
{[%clk 0:00:41.8]} 62... Bg7 {[%clk 0:00:08.5]} 63. Ne2 {[%clk 0:00:37.3]} 63...
Kb4 {[%clk 0:00:08.8]} 64. Nc1 {[%clk 0:00:37.8]} 64... Kc5 {[%clk 0:00:09.1]}
65. Kd3 {[%clk 0:00:38.2]} 65... Be5 {[%clk 0:00:07]} 66. Ne2 {[%clk 0:00:34.6]}
66... Kb4 {[%clk 0:00:07.1]} 67. Kc2 {[%clk 0:00:35]} 67... Bf4 {[%clk
0:00:06.7]} 68. Nc1 {[%clk 0:00:35.4]} 68... Bg3 {[%clk 0:00:06.7]} 69. Kd3
{[%clk 0:00:34.1]} 69... Ka3 {[%clk 0:00:06.6]} 70. Kc2 {[%clk 0:00:34.2]} 70...
Be1 {[%clk 0:00:06.3]} 71. Ne2 {[%clk 0:00:34.4]} 71... Bd2 {[%clk 0:00:06.7]}
72. Nd4 {[%clk 0:00:34.7]} 72... Bb4 {[%clk 0:00:06.8]} 73. Nb5+ {[%clk
0:00:33.7]} 73... Ka2 {[%clk 0:00:06.8]} 74. Nd4 {[%clk 0:00:34.3]} 74... Ka3
{[%clk 0:00:06.7]} 75. Nb5+ {[%clk 0:00:34.4]} 75... Ka2 {[%clk 0:00:07.1]} 76.
Nd4 {[%clk 0:00:34.9]} 76... Bc5 {[%clk 0:00:07.4]} 77. Ne2 {[%clk 0:00:27.5]}
77... Ka3 {[%clk 0:00:07.9]} 1/2-1/2

[Event "Early-Titled-Tuesday-Blitz-September-05-2023"]
[Site "Chess.com"]
[Date "2023.09.05"]
[Round "11"]
[White "crazy_m_attack"]
[Black "NelsonLinda"]
[Result "1-0"]
[WhiteElo "2382"]
[BlackElo "2477"]
[TimeControl "180+1"]
[EndTime "10:07:03 PDT"]
[Termination "crazy_m_attack won by resignation"]

1. e4 {[%clk 0:03:00.9]} 1... d5 {[%clk 0:02:57.3]} 2. exd5 {[%clk 0:03:00.8]}
2... Qxd5 {[%clk 0:02:58.2]} 3. Nc3 {[%clk 0:03:00.5]} 3... Qe5+ {[%clk
0:02:56.3]} 4. Be2 {[%clk 0:02:54.4]} 4... Bg4 {[%clk 0:02:55.1]} 5. d4 {[%clk
0:02:54]} 5... Bxe2 {[%clk 0:02:55.2]} 6. Ngxe2 {[%clk 0:02:54.9]} 6... Qa5
{[%clk 0:02:54.6]} 7. O-O {[%clk 0:02:54.5]} 7... Nf6 {[%clk 0:02:47.2]} 8. Bf4
{[%clk 0:02:47.5]} 8... c6 {[%clk 0:02:44.5]} 9. Qd3 {[%clk 0:02:44.2]} 9... e6
{[%clk 0:02:42.6]} 10. Ng3 {[%clk 0:02:40.8]} 10... Be7 {[%clk 0:02:28]} 11.
Rfe1 {[%clk 0:02:34.3]} 11... O-O {[%clk 0:01:49.8]} 12. a3 {[%clk 0:02:30.1]}
12... Qd8 {[%clk 0:01:47.9]} 13. Rad1 {[%clk 0:02:23.3]} 13... Nbd7 {[%clk
0:01:48]} 14. Nge4 {[%clk 0:02:18.9]} 14... Nxe4 {[%clk 0:01:33]} 15. Qxe4
{[%clk 0:02:19.8]} 15... Nf6 {[%clk 0:01:33.9]} 16. Qf3 {[%clk 0:02:08.7]} 16...
Re8 {[%clk 0:01:34]} 17. Na4 {[%clk 0:01:58.5]} 17... Qa5 {[%clk 0:01:31.1]} 18.
b3 {[%clk 0:01:51.9]} 18... Bxa3 {[%clk 0:01:22.7]} 19. Ra1 {[%clk 0:01:49.7]}
19... Be7 {[%clk 0:01:15.1]} 20. Be5 {[%clk 0:01:43.4]} 20... Qd8 {[%clk
0:01:13.3]} 21. Qg3 {[%clk 0:01:41.1]} 21... Bf8 {[%clk 0:01:09.7]} 22. c4
{[%clk 0:01:33.5]} 22... Nd7 {[%clk 0:01:09]} 23. Bf4 {[%clk 0:01:27.9]} 23...
Nb6 {[%clk 0:01:02.6]} 24. Bc7 {[%clk 0:01:25]} 24... Qxd4 {[%clk 0:01:00.1]}
25. Rad1 {[%clk 0:01:17.3]} 25... Qf6 {[%clk 0:00:58.8]} 26. Nxb6 {[%clk
0:01:06.4]} 26... axb6 {[%clk 0:00:59.3]} 27. Bxb6 {[%clk 0:01:06.2]} 27... e5
{[%clk 0:00:57.7]} 28. Bc7 {[%clk 0:00:56.5]} 28... Rac8 {[%clk 0:00:56.4]} 29.
Bxe5 {[%clk 0:00:53.1]} 29... Qg6 {[%clk 0:00:48.3]} 30. Qxg6 {[%clk 0:00:50.7]}
30... hxg6 {[%clk 0:00:49.2]} 31. Bc3 {[%clk 0:00:50.6]} 31... Rxe1+ {[%clk
0:00:47.7]} 32. Rxe1 {[%clk 0:00:51.5]} 32... Rd8 {[%clk 0:00:46.2]} 33. Kf1
{[%clk 0:00:51.3]} 33... f6 {[%clk 0:00:45.5]} 34. Ke2 {[%clk 0:00:51.2]} 34...
Kf7 {[%clk 0:00:43.8]} 35. Ra1 {[%clk 0:00:49.6]} 35... Bc5 {[%clk 0:00:43.1]}
36. b4 {[%clk 0:00:46.6]} 36... Be7 {[%clk 0:00:42.3]} 37. Ra7 {[%clk
0:00:45.8]} 37... Rd7 {[%clk 0:00:42.6]} 38. Ke3 {[%clk 0:00:43.1]} 38... Ke6
{[%clk 0:00:40.8]} 39. c5 {[%clk 0:00:41.9]} 39... Kd5 {[%clk 0:00:38.7]} 40.
Kd3 {[%clk 0:00:39.9]} 40... f5 {[%clk 0:00:29.2]} 41. Ra2 {[%clk 0:00:39.1]}
41... Bd8 {[%clk 0:00:25.2]} 42. Re2 {[%clk 0:00:37.9]} 42... Bc7 {[%clk
0:00:24.8]} 43. g3 {[%clk 0:00:37]} 43... g5 {[%clk 0:00:23]} 44. Re8 {[%clk
0:00:34.3]} 44... g4 {[%clk 0:00:18.9]} 45. Rg8 {[%clk 0:00:32.8]} 45... Be5
{[%clk 0:00:16.7]} 46. Bd2 {[%clk 0:00:26.2]} 46... Bf6 {[%clk 0:00:13.1]} 47.
Rf8 {[%clk 0:00:23]} 47... Ke5+ {[%clk 0:00:12.3]} 48. Kc2 {[%clk 0:00:20.7]}
48... Ke4 {[%clk 0:00:10.8]} 49. Re8+ {[%clk 0:00:15.6]} 49... Kf3 {[%clk
0:00:10.1]} 50. Be3 {[%clk 0:00:15.7]} 50... Re7 {[%clk 0:00:08.3]} 51. Rxe7
{[%clk 0:00:10.2]} 51... Bxe7 {[%clk 0:00:09.2]} 52. Kd3 {[%clk 0:00:09.7]}
52... Bf6 {[%clk 0:00:09.4]} 53. Kc4 {[%clk 0:00:09.5]} 53... g5 {[%clk
0:00:09.3]} 54. b5 {[%clk 0:00:07.4]} 54... f4 {[%clk 0:00:08.9]} 55. gxf4
{[%clk 0:00:05.9]} 55... gxf4 {[%clk 0:00:09.8]} 56. Bc1 {[%clk 0:00:06.1]}
56... Be5 {[%clk 0:00:09.7]} 57. Kd3 {[%clk 0:00:06.6]} 57... Kxf2 {[%clk
0:00:09.4]} 58. bxc6 {[%clk 0:00:07]} 58... bxc6 {[%clk 0:00:08.7]} 59. Ke4
{[%clk 0:00:07.9]} 59... g3 {[%clk 0:00:03.5]} 60. hxg3 {[%clk 0:00:07.9]} 60...
Kxg3 {[%clk 0:00:02.7]} 61. Kxe5 {[%clk 0:00:07.4]} 61... f3 {[%clk 0:00:03.2]}
62. Be3 {[%clk 0:00:07.4]} 62... f2 {[%clk 0:00:02.7]} 63. Bxf2+ {[%clk
0:00:08]} 63... Kxf2 {[%clk 0:00:03.6]} 64. Kd6 {[%clk 0:00:08.9]} 64... Ke3
{[%clk 0:00:04.5]} 65. Kxc6 {[%clk 0:00:09.3]} 65... Kd4 {[%clk 0:00:05.4]} 66.
Kd6 {[%clk 0:00:09.3]} 66... Kc4 {[%clk 0:00:06.3]} 67. c6 {[%clk 0:00:10.2]}
1-0

[Event "Early-Titled-Tuesday-Blitz-September-05-2023"]
[Site "Chess.com"]
[Date "2023.09.05"]
[Round "11"]
[White "PavelChernomordik"]
[Black "WiktoriaPOL"]
[Result "1-0"]
[WhiteElo "2482"]
[BlackElo "2297"]
[TimeControl "180+1"]
[EndTime "10:07:04 PDT"]
[Termination "PavelChernomordik won on time"]

1. e4 {[%clk 0:03:00.9]} 1... c5 {[%clk 0:02:55.7]} 2. Nc3 {[%clk 0:02:59.9]}
2... a6 {[%clk 0:02:55]} 3. g3 {[%clk 0:02:59.5]} 3... b5 {[%clk 0:02:54.7]} 4.
Bg2 {[%clk 0:02:59.7]} 4... Bb7 {[%clk 0:02:53.5]} 5. Qe2 {[%clk 0:02:59.5]}
5... e6 {[%clk 0:02:52.3]} 6. f4 {[%clk 0:02:57.4]} 6... b4 {[%clk 0:02:51.6]}
7. Nd1 {[%clk 0:02:56.5]} 7... Ne7 {[%clk 0:02:46.4]} 8. d3 {[%clk 0:02:50.8]}
8... d5 {[%clk 0:02:41.1]} 9. Ne3 {[%clk 0:02:43]} 9... Nbc6 {[%clk 0:02:36.1]}
10. Nf3 {[%clk 0:02:42]} 10... a5 {[%clk 0:02:30]} 11. O-O {[%clk 0:02:33]}
11... dxe4 {[%clk 0:02:15.9]} 12. dxe4 {[%clk 0:02:31.6]} 12... Ba6 {[%clk
0:02:15.5]} 13. Qf2 {[%clk 0:02:02.2]} 13... Bxf1 {[%clk 0:02:13.8]} 14. Bxf1
{[%clk 0:02:00]} 14... Nd4 {[%clk 0:02:12.7]} 15. Nxd4 {[%clk 0:01:50.9]} 15...
cxd4 {[%clk 0:02:11.8]} 16. Bb5+ {[%clk 0:01:50.1]} 16... Nc6 {[%clk 0:02:02.6]}
17. Bxc6+ {[%clk 0:01:49.3]} 17... Ke7 {[%clk 0:02:00.4]} 18. Nf1 {[%clk
0:01:33]} 18... Rc8 {[%clk 0:01:55.4]} 19. Ba4 {[%clk 0:01:32.3]} 19... f6
{[%clk 0:01:49.3]} 20. f5 {[%clk 0:01:25.7]} 20... e5 {[%clk 0:01:45.8]} 21. g4
{[%clk 0:01:24.1]} 21... Kf7 {[%clk 0:01:30.3]} 22. Bb3+ {[%clk 0:01:21.7]}
22... Ke8 {[%clk 0:01:29.7]} 23. Ng3 {[%clk 0:01:19.4]} 23... Bc5 {[%clk
0:01:25.6]} 24. Kg2 {[%clk 0:01:04.1]} 24... Bb6 {[%clk 0:00:59.7]} 25. Qe2
{[%clk 0:01:02.2]} 25... Qd6 {[%clk 0:00:46.5]} 26. g5 {[%clk 0:00:53.8]} 26...
Qc5 {[%clk 0:00:43.3]} 27. Qh5+ {[%clk 0:00:49]} 27... Kd8 {[%clk 0:00:37.6]}
28. Qf7 {[%clk 0:00:47.8]} 28... Rc7 {[%clk 0:00:23.8]} 29. Qd5+ {[%clk
0:00:36]} 29... Qxd5 {[%clk 0:00:22.1]} 30. exd5 {[%clk 0:00:35.6]} 30... Re8
{[%clk 0:00:09]} 31. Ne4 {[%clk 0:00:34.9]} 31... fxg5 {[%clk 0:00:04.4]} 32.
Bxg5+ {[%clk 0:00:33.9]} 32... Kd7 {[%clk 0:00:03.9]} 33. Ba4+ {[%clk
0:00:33.4]} 33... Kc8 {[%clk 0:00:03.2]} 34. Nd6+ {[%clk 0:00:31.1]} 34... Kb8
{[%clk 0:00:03.3]} 35. Nxe8 {[%clk 0:00:30.3]} 35... Rc8 {[%clk 0:00:03.4]} 36.
d6 {[%clk 0:00:29.4]} 36... e4 {[%clk 0:00:03]} 37. d7 {[%clk 0:00:29]} 37...
Rc5 {[%clk 0:00:02.8]} 38. d8=Q+ {[%clk 0:00:25.6]} 38... Bxd8 {[%clk
0:00:03.6]} 39. Bxd8 {[%clk 0:00:24.8]} 39... Rxf5 {[%clk 0:00:03.9]} 40. Nd6
{[%clk 0:00:20.9]} 40... Rd5 {[%clk 0:00:04]} 41. Be7 {[%clk 0:00:20.5]} 41...
e3 {[%clk 0:00:04]} 42. Kf3 {[%clk 0:00:20]} 42... Re5 {[%clk 0:00:04.1]} 43.
Bf8 {[%clk 0:00:17.1]} 43... Rh5 {[%clk 0:00:04]} 44. Bxg7 {[%clk 0:00:16]}
44... Rxh2 {[%clk 0:00:04.1]} 45. Be5 {[%clk 0:00:15.4]} 45... Rf2+ {[%clk
0:00:04.2]} 46. Ke4 {[%clk 0:00:15.3]} 46... e2 {[%clk 0:00:04.3]} 47. Re1
{[%clk 0:00:14.6]} 47... h5 {[%clk 0:00:03.7]} 48. Nf5+ {[%clk 0:00:13.4]} 48...
Kb7 {[%clk 0:00:03.6]} 49. Nxd4 {[%clk 0:00:12.7]} 49... h4 {[%clk 0:00:02.2]}
50. Rxe2 {[%clk 0:00:11.9]} 50... Rxe2+ {[%clk 0:00:02.1]} 51. Nxe2 {[%clk
0:00:11.5]} 51... h3 {[%clk 0:00:03]} 52. Bh2 {[%clk 0:00:10.4]} 52... Kb6
{[%clk 0:00:03.1]} 53. Nf4 {[%clk 0:00:10.2]} 53... Kc5 {[%clk 0:00:03.6]} 54.
Nxh3 {[%clk 0:00:11.1]} 54... b3 {[%clk 0:00:03.8]} 55. axb3 {[%clk 0:00:10.4]}
55... Kb4 {[%clk 0:00:04.7]} 56. Be5 {[%clk 0:00:09.6]} 56... Kc5 {[%clk
0:00:02.3]} 57. Bc3 {[%clk 0:00:09.6]} 57... Kb6 {[%clk 0:00:02.2]} 58. Nf4
{[%clk 0:00:09.8]} 58... Ka6 {[%clk 0:00:02.5]} 59. Nd5 {[%clk 0:00:09.7]} 59...
Kb7 {[%clk 0:00:02.3]} 60. Bxa5 {[%clk 0:00:09.5]} 60... Ka6 {[%clk 0:00:02.8]}
61. Bb4 {[%clk 0:00:09.3]} 61... Kb7 {[%clk 0:00:02.6]} 62. c4 {[%clk
0:00:09.7]} 62... Ka6 {[%clk 0:00:02.4]} 63. c5 {[%clk 0:00:09.8]} 63... Ka7
{[%clk 0:00:02.5]} 64. c6 {[%clk 0:00:09.6]} 64... Ka6 {[%clk 0:00:01.2]} 65. c7
{[%clk 0:00:09.3]} 65... Kb7 {[%clk 0:00:01.8]} 66. Bd7 {[%clk 0:00:09]} 66...
Ka7 {[%clk 0:00:01.2]} 67. Kd4 {[%clk 0:00:07.2]} 1-0